bitfinex-derivatives/quotes_ETHF0:USTF0_20250430
["timestamp","ask_amount","ask_price","bid_price","bid_amount"]
[1745976051243,4.8026,1804.5,1804.2,4.40499]
[1745976051244,1.10818,1804.3,1804.2,8.23299]
[1745976051945,1.10818,1804.3,1804.2,7.1248]
[1745976052147,1.94108,1804.3,1804.2,8.23304]
[1745976052347,1.94108,1804.3,1804.2,7.1248]
[1745976052546,1.94108,1804.3,1804.2,8.23304]
[1745976053850,1.10818,1804.3,1804.2,8.23304]
[1745976055149,1.10818,1804.3,1804.2,7.1248]
[1745976055346,1.10818,1804.3,1804.2,8.23304]
[1745976055744,4.3159,1804.5,1804.4,1.10812]
[1745976056049,1.10812,1804.4,1804.3,2.77214]
[1745976057250,1.10812,1804.4,1804.3,6.60014]
[1745976060748,1.10812,1804.4,1804.3,5.492]
[1745976061150,1.10812,1804.4,1804.3,1.664]
[1745976061351,2.68752,1804.4,1804.3,1.664]
[1745976061548,1.10818,1804.3,1804.2,4.0212]
[1745976061856,1.10837,1804.0,1803.9,3.2078]
[1745976062447,1.10837,1804.0,1803.9,4.31623]
[1745976062652,1.10834,1804.1,1804.0,1.10831]
[1745976062853,3.828,1804.3,1804.0,4.376]
[1745976063056,4.93622,1804.3,1804.2,1.10824]
[1745976063249,1.10822,1804.3,1804.2,1.10824]
[1745976063450,1.10822,1804.3,1804.2,2.71344]
[1745976064250,1.10822,1804.3,1804.2,6.54144]
[1745976065263,1.10817,1804.4,1804.3,1.10812]
[1745976065458,1.10808,1804.5,1804.4,1.10812]
[1745976065756,1.10808,1804.5,1804.4,2.71142]
[1745976066159,1.10808,1804.5,1804.4,6.53942]
[1745976066360,2.81778,1804.5,1804.4,6.53942]
[1745976066660,2.81778,1804.5,1804.4,3.828]
[1745976067161,1.10818,1804.3,1804.2,4.66423]
[1745976068063,2.81858,1804.3,1804.2,4.66423]
[1745976068452,5.97782,1804.6,1804.2,3.556]
[1745976068656,1.10812,1804.5,1804.4,1.10808]
[1745976068858,1.10812,1804.4,1804.3,1.91082]
[1745976069053,1.10837,1804.0,1803.9,3.2078]
[1745976069259,1.10837,1804.0,1803.9,4.31623]
[1745976070163,1.10837,1804.0,1803.9,8.14423]
[1745976072163,1.97837,1804.0,1803.9,8.14423]
[1745976073465,1.10837,1804.0,1803.9,8.14423]
[1745976074164,1.10837,1804.0,1803.9,9.81253]
[1745976074463,3.68876,1804.1,1804.0,1.10837]
[1745976074660,3.68876,1804.1,1804.0,2.77667]
[1745976075462,3.68876,1804.1,1803.9,3.2078]
[1745976075463,1.10837,1804.0,1803.9,4.31618]
[1745976075663,2.83157,1804.0,1803.9,4.31618]
[1745976075860,3.66827,1804.0,1803.9,4.31618]
[1745976076262,3.66827,1804.0,1803.9,8.14418]
[1745976076968,3.66827,1804.0,1803.9,7.0358]
[1745976077266,3.66827,1804.0,1803.9,4.31623]
[1745976078367,3.66827,1804.0,1803.9,5.97803]
[1745976079070,3.66827,1804.0,1803.9,9.80603]
[1745976080164,3.66827,1804.0,1803.9,4.31623]
[1745976081169,3.66827,1804.0,1803.9,8.14423]
[1745976082370,3.66827,1804.0,1803.9,4.31623]
[1745976083372,3.66827,1804.0,1803.9,1.10843]
[1745976083574,1.10843,1803.9,1803.8,3.2078]
[1745976083872,1.10861,1803.7,1803.6,1.10858]
[1745976084369,3.66251,1803.7,1803.6,1.10858]
[1745976084975,2.5539,1803.7,1803.6,1.10858]
[1745976085174,3.66245,1803.7,1803.6,2.69458]
[1745976085573,2.82705,1803.7,1803.6,2.69458]
[1745976087676,1.7185,1803.7,1803.6,2.69458]
[1745976087976,2.82705,1803.7,1803.6,2.69458]
[1745976089179,1.10861,1803.6,1803.5,11.68472]
[1745976089480,3.59991,1803.6,1803.5,5.78272]
[1745976090977,3.59991,1803.6,1803.5,4.93662]
[1745976091373,3.59991,1803.6,1803.5,3.828]
[1745976092181,1.10867,1803.5,1803.4,43.53259]
[1745976092481,3.54427,1803.5,1803.4,43.53259]
[1745976092679,3.54427,1803.5,1803.4,40.8]
[1745976092880,3.54427,1803.5,1803.4,41.90873]
[1745976093380,3.54427,1803.5,1803.4,40.8]
[1745976093580,3.54427,1803.5,1803.4,41.90873]
[1745976094289,3.54427,1803.5,1803.4,1.10873]
[1745976096686,1.10873,1803.4,1803.3,41.638]
[1745976096988,1.1088,1803.3,1803.2,5.9342]
[1745976097186,1.1088,1803.3,1803.2,6.5544]
[1745976097390,1.1088,1803.3,1803.2,47.3544]
[1745976098789,1.1088,1803.3,1803.2,4.9368]
[1745976098988,1.9803,1803.3,1803.2,4.9368]
[1745976099589,1.1088,1803.3,1803.2,4.9368]
[1745976099888,1.1088,1803.3,1803.2,6.52]
[1745976100479,1.1088,1803.3,1803.2,4.9368]
[1745976102090,1.1088,1803.3,1803.2,1.1088]
[1745976102291,2.77015,1804.5,1804.0,1.10834]
[1745976102492,1.7416,1804.2,1804.1,1.1083]
[1745976102793,1.7416,1804.2,1804.1,41.9083]
[1745976103194,1.7416,1804.2,1804.1,1.1083]
[1745976103589,2.84984,1804.2,1804.1,1.1083]
[1745976103788,1.7416,1804.2,1804.1,1.1083]
[1745976105897,1.6933,1804.4,1804.3,1.10818]
[1745976106195,1.10824,1804.2,1804.1,6.03917]
[1745976106792,1.10824,1804.2,1804.1,4.31607]
[1745976107389,1.6821,1804.3,1804.2,1.10824]
[1745976107998,2.79028,1804.3,1804.2,1.10824]
[1745976110791,1.6821,1804.3,1804.2,1.10824]
[1745976111092,1.6821,1804.3,1804.2,2.78294]
[1745976115198,2.80142,1804.4,1804.3,1.10818]
[1745976115199,0.8317,1804.4,1804.3,1.10818]
[1745976115399,0.8317,1804.4,1804.3,2.82098]
[1745976115598,1.6137,1804.5,1804.4,1.10812]
[1745976115798,2.72176,1804.5,1804.4,2.82092]
[1745976116296,2.72176,1804.5,1804.4,1.10812]
[1745976123605,1.10812,1804.4,1804.3,1.10813]
[1745976123805,3.55492,1804.4,1804.3,1.10813]
[1745976126608,3.55492,1804.4,1804.3,2.80273]
[1745976128711,2.4468,1804.4,1804.3,2.80273]
[1745976129013,2.4468,1804.4,1804.3,6.01053]
[1745976129203,2.4468,1804.4,1804.3,9.83853]
[1745976130908,3.55492,1804.4,1804.3,8.14393]
[1745976131211,3.55492,1804.4,1804.3,4.31593]
[1745976132912,2.4468,1804.4,1804.3,4.31593]
[1745976134107,3.55492,1804.4,1804.3,4.31593]
[1745976134308,2.4468,1804.4,1804.3,5.93513]
[1745976134509,1.5844,1804.4,1804.3,5.93513]
[1745976136107,1.5846,1804.6,1804.5,1.10806]
[1745976136412,3.3085,1804.6,1804.5,1.10806]
[1745976136616,1.10806,1804.5,1804.4,0.8393]
[1745976136818,2.83196,1804.5,1804.4,1.10807]
[1745976139310,2.83196,1804.5,1804.3,11.88018]
[1745976139311,1.10812,1804.4,1804.3,10.21794]
[1745976139615,2.83012,1804.4,1804.3,4.31594]
[1745976145518,1.10824,1804.2,1804.1,6.82955]
[1745976146214,2.70444,1804.2,1804.1,6.82955]
[1745976146818,1.5962,1804.2,1804.1,6.82955]
[1745976148322,1.10811,1804.5,1804.4,1.10806]
[1745976148917,2.75061,1804.5,1804.4,1.10806]
[1745976149513,2.75061,1804.5,1804.4,3.61046]
[1745976150421,2.75061,1804.5,1804.4,1.96076]
[1745976150616,2.75061,1804.5,1804.4,1.10806]
[1745976152024,1.10818,1804.4,1804.3,1.10815]
[1745976152324,1.10818,1804.3,1804.2,1.1082]
[1745976152510,1.90588,1804.3,1804.2,1.1082]
[1745976152714,3.48818,1804.3,1804.2,1.1082]
[1745976153827,3.48818,1804.3,1804.2,23.05333903]
[1745976155419,3.48818,1804.3,1804.2,21.94513903]
[1745976155619,8.48818,1804.3,1804.2,21.94513903]
[1745976156220,7.31618,1804.3,1804.2,21.94513903]
[1745976156426,7.31618,1804.3,1804.2,23.05337903]
[1745976157127,7.31618,1804.3,1804.2,26.43927903]
[1745976157424,2.69048,1804.3,1804.2,26.43927903]
[1745976158826,2.72085,1804.4,1804.3,1.10818]
[1745976159026,1.93105,1804.4,1804.3,2.71788]
[1745976160420,3.57485,1804.4,1804.3,2.71788]
[1745976161927,2.75195,1804.4,1804.3,2.71788]
[1745976162228,1.10806,1804.5,1804.4,1.10812]
[1745976162417,1.10806,1804.5,1804.4,2.84872]
[1745976162622,7.59136,1804.6,1804.5,1.10806]
[1745976162822,3.2078,1804.6,1804.5,2.84866]
[1745976163023,4.3158,1804.6,1804.5,2.84866]
[1745976163319,1.10796,1804.7,1804.5,1.7406]
[1745976163523,1.10796,1804.7,1804.6,3.6345]
[1745976164730,2.68146,1804.7,1804.6,3.6345]
[1745976165729,2.68146,1804.7,1804.6,21.92877521]
[1745976165926,2.68146,1804.7,1804.6,21.14287521]
[1745976167727,4.3456,1804.9,1804.6,23.24267521]
[1745976168028,4.66582,1804.9,1804.8,1.10787]
[1745976168428,4.66582,1804.9,1804.8,3.47177]
[1745976170038,1.10782,1804.9,1804.8,3.47177]
[1745976173837,1.91832,1804.9,1804.8,3.47177]
[1745976175036,1.10782,1804.9,1804.8,3.47177]
[1745976175440,1.10782,1804.9,1804.8,2.3639]
[1745976175736,1.10782,1804.9,1804.8,3.47177]
[1745976176135,0.7907,1805.1,1804.8,2.3639]
[1745976176340,0.7907,1805.1,1804.9,2.6808]
[1745976176535,1.89839,1805.1,1805.0,1.573]
[1745976176735,5.97618,1805.7,1805.0,3.55094]
[1745976177035,1.10769,1805.1,1805.0,1.573]
[1745976177537,2.5094,1805.3,1805.0,2.6807]
[1745976177740,1.10769,1805.1,1805.0,2.6807]
[1745976177932,1.10769,1805.1,1805.0,1.1077]
[1745976178640,1.7187,1805.2,1805.0,1.1077]
[1745976178940,1.10769,1805.1,1805.0,1.1077]
[1745976179840,1.7187,1805.2,1805.0,1.1077]
[1745976180031,1.10769,1805.1,1805.0,1.1077]
[1745976180233,2.82636,1805.2,1805.1,1.10769]
[1745976180536,2.82636,1805.2,1804.9,7.40841952]
[1745976180537,1.1077,1805.1,1804.9,7.40841952]
[1745976180739,1.10775,1805.0,1804.9,8.51618952]
[1745976181040,1.10775,1805.0,1804.9,7.40841952]
[1745976182037,3.64025,1805.0,1804.9,7.40841952]
[1745976182239,7.46825,1805.0,1804.9,7.40841952]
[1745976183142,12.46825,1805.0,1804.9,7.40841952]
[1745976183828,12.46825,1805.0,1804.9,0.43377952]
[1745976184029,1.10812,1804.4,1804.3,1.94066]
[1745976184232,1.10812,1804.4,1804.3,0.8325]
[1745976184433,1.10812,1804.4,1804.3,1.94068]
[1745976185847,1.10818,1804.3,1804.2,14.20877952]
[1745976186037,1.10818,1804.3,1804.2,3.64157952]
[1745976186242,1.10818,1804.3,1804.2,0.43377952]
[1745976186542,1.10837,1804.0,1803.9,3.2078]
[1745976186738,1.10843,1803.9,1803.8,12.16776334]
[1745976187146,1.10843,1803.9,1803.8,11.05928334]
[1745976187646,1.10843,1803.9,1803.8,12.16777334]
[1745976187946,1.10843,1803.9,1803.8,11.05928334]
[1745976189846,1.10843,1803.9,1803.8,12.16777334]
[1745976190246,1.10843,1803.9,1803.8,11.05928334]
[1745976190447,1.10855,1803.7,1803.6,45.93157]
[1745976190641,1.10855,1803.7,1803.6,4.023]
[1745976190845,1.10855,1803.7,1803.6,1.92381]
[1745976191348,2.80805,1803.7,1803.6,1.92381]
[1745976192145,2.80805,1803.7,1803.6,0.8152]
[1745976192345,2.80805,1803.7,1803.6,1.92381]
[1745976192541,1.10861,1803.6,1803.5,1.6675]
[1745976192751,2.71721,1803.6,1803.5,1.6675]
[1745976193234,2.71721,1803.6,1803.5,1.10867]
[1745976193839,2.71721,1803.6,1803.5,2.83957]
[1745976195443,2.71721,1803.6,1803.5,1.7309]
[1745976195649,2.71721,1803.6,1803.5,2.83957]
[1745976197146,2.71721,1803.6,1803.5,6.66757]
[1745976197339,1.6086,1803.6,1803.5,6.66757]
[1745976197539,1.10861,1803.7,1803.6,1.10861]
[1745976197740,1.10861,1803.7,1803.6,2.84051]
[1745976198142,1.10848,1803.9,1803.8,1.10843]
[1745976198342,3.2078,1804.0,1803.9,1.10843]
[1745976198944,3.2078,1804.0,1803.9,2.77883]
[1745976199139,3.2078,1804.0,1803.9,17.50883]
[1745976199346,1.93898,1804.4,1804.2,1.10818]
[1745976199543,2.77671,1804.5,1804.4,1.10812]
[1745976199851,1.10812,1804.4,1804.3,3.64343]
[1745976200147,1.6686,1804.4,1804.3,3.64343]
[1745976200348,2.77672,1804.4,1804.3,3.64343]
[1745976200646,1.6686,1804.4,1804.3,3.64343]
[1745976200847,2.77672,1804.4,1804.3,3.64343]
[1745976201148,1.10807,1804.5,1804.4,1.10806]
[1745976201538,2.77497,1804.5,1804.4,5.94106]
[1745976202046,2.77497,1804.5,1804.4,3.2078]
[1745976202441,2.77497,1804.5,1804.4,4.31592]
[1745976203544,2.77497,1804.5,1804.4,3.2078]
[1745976204351,2.77497,1804.5,1804.4,4.31592]
[1745976205950,2.77497,1804.5,1804.4,3.2078]
[1745976206550,2.77497,1804.5,1804.4,4.31592]
[1745976209452,2.77497,1804.5,1804.4,3.2078]
[1745976210151,6.60297,1804.5,1804.4,3.2078]
[1745976213243,1.10812,1804.4,1804.3,1.10815]
[1745976213447,2.79272,1804.4,1804.3,4.31595]
[1745976214849,1.1081,1804.5,1804.4,1.10806]
[1745976215155,1.10803,1804.6,1804.5,1.108]
[1745976215454,1.10803,1804.6,1804.5,4.3158]
[1745976215752,1.10803,1804.6,1804.5,6.0384]
[1745976216653,2.75003,1804.6,1804.5,4.3158]
[1745976216853,3.56443,1804.6,1804.5,4.3158]
[1745976217151,1.10803,1804.6,1804.5,5.9348]
[1745976219655,6.308,1804.7,1804.6,1.108]
[1745976219955,6.308,1804.7,1804.6,2.7093]
[1745976220856,4.666,1804.7,1804.6,2.7093]
[1745976221059,1.108,1804.7,1804.6,2.7093]
[1745976223755,1.5901,1804.8,1804.6,1.6013]
[1745976223957,1.94596,1804.9,1804.8,1.10787]
[1745976224160,1.10786,1804.9,1804.8,1.10787]
[1745976224654,3.5866,1805.0,1804.9,1.10781]
[1745976225362,3.5866,1805.0,1804.9,2.79151]
[1745976226159,4.4219,1805.2,1805.0,1.1077]
[1745976226362,4.4219,1805.2,1805.1,1.10769]
[1745976226363,1.97158,1805.2,1805.1,1.10769]
[1745976226553,3.57728,1805.2,1805.1,1.10769]
[1745976226856,1.10769,1805.1,1805.0,2.4735]
[1745976227057,2.71339,1805.1,1805.0,2.78075]
[1745976227459,2.71339,1805.1,1805.0,1.10392408]
[1745976227657,1.10775,1805.0,1804.9,4.31558]
[1745976227861,3.56035,1805.0,1804.9,4.31558]
[1745976228157,3.56035,1805.0,1804.9,4.31561]
[1745976228357,3.56035,1805.0,1804.9,3.2078]
[1745976228559,3.56035,1805.0,1804.9,4.31561]
[1745976229961,3.56035,1805.0,1804.9,3.2078]
[1745976230161,7.38835,1805.0,1804.9,3.2078]
[1745976231156,3.56035,1805.0,1804.9,3.2078]
[1745976231663,3.56035,1805.0,1804.9,4.31561]
[1745976234363,1.10794,1804.8,1804.7,3.2078]
[1745976234562,1.10794,1804.8,1804.7,4.31574]
[1745976234764,2.72244,1804.8,1804.7,4.31574]
[1745976235265,2.72244,1804.8,1804.7,3.2078]
[1745976235464,2.72244,1804.8,1804.7,4.31574]
[1745976236863,2.72244,1804.8,1804.7,3.2078]
[1745976237062,2.72244,1804.8,1804.7,4.31574]
[1745976239769,1.10794,1804.8,1804.7,5.95234]
[1745976240865,2.70764,1804.8,1804.7,5.95234]
[1745976241771,4.4049,1805.0,1804.9,1.10781]
[1745976241974,4.4049,1805.0,1804.9,4.31561]
[1745976242270,5.51265,1805.0,1804.9,6.76781]
[1745976242458,5.51265,1805.0,1804.9,5.13391]
[1745976242660,5.51265,1805.0,1804.9,4.0261]
[1745976242864,7.11235,1805.0,1804.9,5.13391]
[1745976243573,7.11235,1805.0,1804.9,4.31561]
[1745976247574,7.11235,1805.0,1804.9,3.2078]
[1745976248285,10.94035,1805.0,1804.9,3.2078]
[1745976248583,10.94035,1805.0,1804.9,4.31561]
[1745976254786,8.49375,1805.0,1804.9,4.31561]
[1745976254987,8.49375,1805.0,1804.9,6.84591]
[1745976255889,8.49375,1805.0,1804.9,6.00881]
[1745976256091,10.12415,1805.0,1804.9,6.00881]
[1745976258794,3.828,1805.0,1804.9,6.00881]
[1745976259090,3.557,1805.4,1805.1,2.76923]
[1745976259285,4.66451,1805.4,1805.3,4.31537]
[1745976259485,6.38871,1805.4,1805.3,3.2078]
[1745976259685,7.17901,1805.4,1805.3,3.2078]
[1745976260087,11.00701,1805.4,1805.3,3.2078]
[1745976260391,1.10763,1805.2,1805.1,3.2078]
[1745976260584,1.10775,1805.0,1804.9,10.21756]
[1745976260784,1.10775,1805.0,1804.9,4.31556]
[1745976261191,2.83195,1805.0,1804.9,4.31556]
[1745976262494,2.83195,1805.0,1804.9,3.2078]
[1745976262896,2.83195,1805.0,1804.9,4.31561]
[1745976263394,2.83195,1805.0,1804.9,3.2078]
[1745976264097,2.83195,1805.0,1804.9,4.31561]
[1745976266496,2.83195,1805.0,1804.9,3.2078]
[1745976266997,2.83195,1805.0,1804.9,4.31561]
[1745976267999,2.83195,1805.0,1804.9,3.2078]
[1745976269294,1.10787,1804.8,1804.7,3.2078]
[1745976269900,1.90227,1804.8,1804.7,3.2078]
[1745976270099,6.52907,1804.8,1804.7,3.2078]
[1745976271906,6.52907,1804.8,1804.7,4.31574]
[1745976272106,4.93587,1804.8,1804.7,4.31574]
[1745976272298,3.828,1804.8,1804.7,4.31574]
[1745976272498,4.93587,1804.8,1804.7,4.31574]
[1745976273199,1.10787,1804.8,1804.7,4.31574]
[1745976274609,1.96857,1804.8,1804.7,4.31574]
[1745976275607,3.56557,1804.8,1804.7,4.31574]
[1745976277615,2.70487,1804.8,1804.7,4.31574]
[1745976278103,1.10787,1804.9,1804.8,1.10781]
[1745976278308,1.10787,1804.9,1804.8,4.31371]
[1745976278709,2.75497,1804.9,1804.8,4.31371]
[1745976278904,2.75497,1804.9,1804.8,3.2059]
[1745976279110,1.10787,1804.8,1804.7,3.2078]
[1745976279409,2.75497,1804.8,1804.7,3.2078]
[1745976280116,6.58297,1804.8,1804.7,3.2078]
[1745976281020,6.58297,1804.8,1804.7,4.31574]
[1745976282109,2.75497,1804.8,1804.7,4.31574]
[1745976282515,2.75497,1804.8,1804.7,1.10794]
[1745976284819,2.75497,1804.8,1804.7,2.76814]
[1745976285409,1.10787,1804.8,1804.7,2.76814]
[1745976285615,1.10786,1804.9,1804.8,1.10781]
[1745976285816,1.10786,1804.9,1804.8,3.56501]
[1745976288822,1.10786,1804.9,1804.8,6.77281]
[1745976289020,2.74006,1804.9,1804.8,6.77281]
[1745976289823,2.74006,1804.9,1804.8,2.4572]
[1745976290119,1.10787,1804.8,1804.7,12.21561809]
[1745976290324,2.83967,1804.8,1804.7,12.21561809]
[1745976291121,6.66767,1804.8,1804.7,12.21561809]
[1745976292924,6.66767,1804.8,1804.7,11.78091043]
[1745976295126,2.83967,1804.8,1804.7,11.78091043]
[1745976295324,2.83967,1804.8,1804.7,1.10794]
[1745976296821,2.83967,1804.8,1804.7,2.68904]
[1745976299430,2.83967,1804.8,1804.7,1.5811]
[1745976300126,1.10794,1804.7,1804.6,5.97375]
[1745976300327,3.66434,1804.7,1804.6,5.12945]
[1745976301228,3.66434,1804.7,1804.6,6.86755]
[1745976301429,3.66434,1804.7,1804.6,5.7596]
[1745976301626,3.66434,1804.7,1804.6,3.2078]
[1745976301827,4.50744,1804.7,1804.6,3.2078]
[1745976303328,1.10806,1804.5,1804.4,14.31547809]
[1745976304630,1.10806,1804.5,1804.4,3.2078]
[1745976308133,2.76916,1804.5,1804.4,3.2078]
[1745976308336,2.76916,1804.5,1804.3,8.20498843]
[1745976308537,4.43432,1804.4,1804.3,7.40398843]
[1745976308726,1.10818,1804.3,1804.2,9.97644809]
[1745976309029,9.53308,1804.3,1804.2,7.76300653]
[1745976309227,18.36108,1804.3,1804.2,4.16417653]
[1745976309626,18.36108,1804.3,1804.2,1.90717653]
[1745976309828,18.45704225,1804.3,1804.2,6.53e-06]
[1745976310326,18.45704049,1804.3,1804.2,6.53e-06]
[1745976311236,1.10843,1803.9,1803.8,14.81023745]
[1745976311830,2.83973,1803.9,1803.8,14.81023745]
[1745976314838,1.10849,1803.8,1803.7,5.8064]
[1745976315024,1.7313,1803.9,1803.7,5.8064]
[1745976315025,2.83978,1803.9,1803.7,5.8064]
[1745976315226,1.1084,1804.0,1803.9,1.10843]
[1745976315435,1.1084,1804.0,1803.9,4.31623]
[1745976315625,1.1084,1804.0,1803.9,5.98293]
[1745976316933,1.1084,1804.0,1803.9,4.8745]
[1745976317334,1.1084,1804.0,1803.9,1.6667]
[1745976318437,2.795,1804.0,1803.9,1.6667]
[1745976319538,1.10843,1803.9,1803.8,1.95158]
[1745976319736,3.60543,1803.9,1803.8,0.8431]
[1745976319942,1.10849,1803.8,1803.7,4.0802]
[1745976320135,2.73399,1803.8,1803.7,5.18875]
[1745976320637,2.73399,1803.8,1803.7,6.80945]
[1745976321932,2.73399,1803.8,1803.7,5.7009]
[1745976323040,2.73399,1803.8,1803.7,6.80945]
[1745976325538,1.10849,1803.8,1803.7,6.80945]
[1745976327330,2.78199,1803.8,1803.7,6.80945]
[1745976327737,2.78199,1803.8,1803.7,3.2078]
[1745976327943,1.10861,1803.6,1803.5,7.68112]
[1745976332133,1.10861,1803.6,1803.5,5.7078]
[1745976332339,3.61771,1803.6,1803.5,3.2078]
[1745976332642,7.17371,1803.6,1803.5,3.2078]
[1745976334945,4.66461,1803.6,1803.5,4.31647]
[1745976335141,4.66461,1803.6,1803.5,5.96397]
[1745976338747,1.10861,1803.6,1803.5,5.96397]
[1745976340850,1.10861,1803.6,1803.5,4.8553]
[1745976341147,1.10861,1803.6,1803.5,5.96397]
[1745976341342,1.90611,1803.6,1803.5,4.8553]
[1745976341949,3.49251,1803.6,1803.5,5.96397]
[1745976342949,1.10867,1803.5,1803.4,0.8173]
[1745976343153,2.69507,1803.5,1803.4,0.8173]
[1745976345553,2.69507,1803.5,1803.4,1.92603]
[1745976346350,1.10873,1803.4,1803.3,3.2078]
[1745976346554,3.57403,1803.4,1803.3,3.2078]
[1745976349951,1.10873,1803.4,1803.3,3.2078]
[1745976350143,1.10873,1803.4,1803.3,5.7756]
[1745976350345,1.10873,1803.4,1803.3,6.8844]
[1745976351548,1.10864,1803.6,1803.4,2.77184]
[1745976351850,1.10864,1803.6,1803.5,5.1411]
[1745976352050,1.10864,1803.6,1803.5,6.8695]
[1745976352755,1.10859,1803.7,1803.6,1.10861]
[1745976352952,1.10859,1803.7,1803.6,2.83701]
[1745976355257,1.10859,1803.7,1803.6,1.7284]
[1745976358348,1.10859,1803.7,1803.6,2.83701]
[1745976359461,1.10859,1803.7,1803.6,1.7284]
[1745976359960,1.10861,1803.6,1803.5,4.0325]
[1745976360160,1.93871,1803.6,1803.5,5.14117]
[1745976360761,1.93871,1803.6,1803.5,4.0325]
[1745976360962,1.93871,1803.6,1803.5,3.2078]
[1745976361261,5.54358,1803.5,1803.3,3.2078]
[1745976361459,1.1088,1803.3,1803.2,14.81023745]
[1745976361962,1.10886,1803.2,1803.1,14.81023745]
[1745976362258,1.95946,1803.2,1803.1,14.81023745]
[1745976362458,3.69096,1803.2,1803.1,14.81023745]
[1745976362658,7.24596,1803.2,1803.1,14.81023745]
[1745976364459,1.90214,1803.3,1803.2,1.10886]
[1745976364657,1.90214,1803.3,1803.2,6.91166]
[1745976364856,1.7342,1803.4,1803.2,6.9116]
[1745976365056,2.84293,1803.4,1803.3,2.5126]
[1745976365551,1.10873,1803.4,1803.3,3.6214]
[1745976365965,1.10866,1803.6,1803.5,1.10867]
[1745976366262,1.10858,1803.7,1803.6,1.10859]
[1745976366464,1.10858,1803.7,1803.6,3.56499]
[1745976366659,1.10858,1803.7,1803.6,2.4564]
[1745976366865,1.10858,1803.7,1803.6,1.5837]
[1745976367062,1.10873,1803.4,1803.3,1.89907]
[1745976367264,1.10872,1803.5,1803.4,1.10873]
[1745976367565,1.10865,1803.6,1803.5,1.10866]
[1745976367766,1.10865,1803.6,1803.5,1.89726]
[1745976368066,1.10865,1803.6,1803.5,5.10506]
[1745976368270,1.10865,1803.6,1803.5,8.93306]
[1745976369367,1.1086,1803.7,1803.6,1.10861]
[1745976369565,1.1086,1803.7,1803.6,2.78041]
[1745976370366,1.1086,1803.7,1803.6,1.6718]
[1745976370565,2.7675,1803.7,1803.6,1.6718]
[1745976370765,2.7675,1803.7,1803.6,2.78041]
[1745976372667,1.10861,1803.6,1803.5,4.31643]
[1745976372867,2.82351,1803.6,1803.5,3.2078]
[1745976373062,1.10873,1803.4,1803.3,17.78764323]
[1745976373266,1.10873,1803.4,1803.3,16.99734323]
[1745976373660,2.82363,1803.4,1803.3,16.99734323]
[1745976374164,2.82363,1803.4,1803.3,18.10614323]
[1745976374371,2.82363,1803.4,1803.3,19.84514323]
[1745976375169,2.82363,1803.4,1803.3,18.73634323]
[1745976375368,2.82363,1803.4,1803.3,7.641]
[1745976375570,2.82363,1803.4,1803.3,8.7498]
[1745976376975,1.10873,1803.4,1803.3,2.8478]
[1745976377568,2.84363,1803.4,1803.3,2.8478]
[1745976379875,5.52922,1803.5,1803.4,1.10873]
[1745976380175,1.10865,1803.6,1803.5,1.10867]
[1745976380368,1.10865,1803.6,1803.5,1.97167]
[1745976380674,1.10865,1803.6,1803.5,3.65657]
[1745976380971,1.10867,1803.5,1803.4,44.8799]
[1745976381172,1.10867,1803.5,1803.4,7.9079]
[1745976381772,3.50737,1803.5,1803.4,7.9079]
[1745976382171,3.50737,1803.5,1803.4,4.0799]
[1745976383175,3.50737,1803.5,1803.4,3.2078]
[1745976384067,1.1088,1803.3,1803.2,4.0179]
[1745976386070,1.1088,1803.3,1803.2,3.2078]
[1745976386573,1.1088,1803.3,1803.1,7.586]
[1745976386574,1.10898,1803.0,1802.9,11.09534323]
[1745976387177,2.84468,1803.0,1802.9,11.09534323]
[1745976388074,6.67268,1803.0,1802.9,11.09534323]
[1745976388974,2.77275,1802.9,1802.6,1.10922]
[1745976389173,1.1092,1802.7,1802.6,2.79362]
[1745976391178,1.10916,1802.8,1802.7,1.10916]
[1745976391378,1.10916,1802.8,1802.7,3.66126]
[1745976392277,1.10916,1802.8,1802.7,2.5521]
[1745976392677,2.79366,1802.8,1802.7,2.5521]
[1745976393275,2.79366,1802.8,1802.7,3.66126]
[1745976393477,2.79366,1802.8,1802.7,6.86906]
[1745976394470,4.66507,1802.9,1802.8,1.1091]
[1745976394673,4.66507,1802.9,1802.8,2.7035]
[1745976396682,1.10903,1803.0,1802.9,1.10904]
[1745976396980,0.8475,1803.1,1803.0,1.10898]
[1745976397285,1.10892,1803.1,1803.0,1.10898]
[1745976397580,1.10892,1803.1,1803.0,3.64338]
[1745976399180,1.10892,1803.1,1803.0,7.47138]
[1745976399382,1.10889,1803.2,1803.1,1.10885]
[1745976399678,1.10885,1803.3,1803.2,1.10882]
[1745976399871,1.10886,1803.2,1803.1,4.31671]
[1745976400279,1.10886,1803.2,1803.1,6.02771]
[1745976400578,1.10886,1803.2,1803.1,4.9188]
[1745976400775,1.10886,1803.2,1803.1,3.2078]
[1745976401474,1.10886,1803.2,1803.1,4.31672]
[1745976401979,1.10886,1803.2,1803.1,3.2078]
[1745976402179,1.10886,1803.2,1803.1,4.31672]
[1745976403484,1.7064,1803.3,1803.2,1.10886]
[1745976403684,2.8152,1803.3,1803.2,2.82136]
[1745976405079,1.7064,1803.3,1803.2,2.82136]
[1745976405283,4.66475,1803.4,1803.3,1.1088]
[1745976405583,4.66475,1803.4,1803.3,3.5999]
[1745976405784,6.37435,1803.4,1803.3,3.5999]
[1745976406583,6.37435,1803.4,1803.3,6.8077]
[1745976409483,6.37435,1803.4,1803.3,5.6989]